[Event "2. Itzehoer Schach Open"]
[Site "Itzehoe, Germany"]
[Date "2023.04.30"]
[Round "4.24"]
[White "Richter, Ruediger"]
[Black "Oblender, Rudi"]
[Result "1/2-1/2"]
[TimeControl "90 min / 40 Züge + 30 min + 30 Sek pro Zug"]
[WhiteElo "1869"]
[BlackElo "1391"]

1. e4 {[%clk 01:30:58]} e5 {[%clk 01:28:07]} {[%emt 00:02:54]} 2. Nf3 {[%clk
01:31:20]} {[%emt 00:00:07]} Nc6 {[%clk 01:28:26]} {[%emt 00:00:12]} 3. Bc4
{[%clk 01:31:41]} {[%emt 00:00:08]} Bc5 {[%clk 01:28:42]} {[%emt 00:00:15]} 4.
O-O {[%clk 01:32:02]} {[%emt 00:00:08]} Nf6 {[%clk 01:29:04]} {[%emt 00:00:09]}
5. d4 {[%clk 01:32:24]} {[%emt 00:00:08]} Bxd4 {[%clk 01:26:05]} {[%emt
00:03:29]} 6. Nxd4 {[%clk 01:32:42]} {[%emt 00:00:12]} Nxd4 {[%clk 01:26:27]}
{[%emt 00:00:08]} 7. f4 {[%clk 01:32:46]} {[%emt 00:00:25]} Nc6 {[%clk
01:23:26]} {[%emt 00:03:32]} 8. f5 {[%clk 01:32:26]} {[%emt 00:00:49]} d6
{[%clk 01:16:27]} {[%emt 00:07:29]} 9. Bg5 {[%clk 01:32:25]} {[%emt 00:00:30]}
b6 {[%clk 01:15:24]} {[%emt 00:01:34]} 10. Nc3 {[%clk 01:32:18]} {[%emt
00:00:37]} Na5 {[%clk 00:59:37]} {[%emt 00:16:17]} 11. Be2 {[%clk 01:29:55]}
{[%emt 00:02:52]} Bb7 {[%clk 00:59:12]} {[%emt 00:00:57]} 12. b4 {[%clk
01:29:21]} {[%emt 00:01:03]} Nc6 {[%clk 00:57:45]} {[%emt 00:01:57]} 13. Nd5
{[%clk 01:29:20]} {[%emt 00:00:31]} Nd4 {[%clk 00:57:45]} {[%emt 00:00:30]} 14.
Bxf6 {[%clk 01:28:50]} {[%emt 00:01:00]} Nxe2+ {[%clk 00:57:17]} {[%emt
00:00:58]} 15. Qxe2 {[%clk 01:29:18]} {[%emt 00:00:02]} gxf6 {[%clk 00:57:39]}
{[%emt 00:00:08]} 16. c4 {[%clk 01:29:03]} {[%emt 00:00:44]} c6 {[%clk
00:48:59]} {[%emt 00:09:11]} 17. Nc3 {[%clk 01:28:49]} {[%emt 00:00:44]} Qe7
{[%clk 00:49:12]} {[%emt 00:00:17]} 18. Rab1 {[%clk 01:24:59]} {[%emt
00:04:19]} h5 {[%clk 00:35:44]} {[%emt 00:13:59]} 19. Rfd1 {[%clk 01:24:12]}
{[%emt 00:01:17]} h4 {[%clk 00:31:18]} {[%emt 00:04:56]} 20. h3 {[%clk
01:24:33]} {[%emt 00:00:09]} Qf8 {[%clk 00:31:41]} {[%emt 00:00:07]} 21. Rd2
{[%clk 01:23:49]} {[%emt 00:01:14]} O-O-O {[%clk 00:29:00]} {[%emt 00:03:12]}
22. a4 {[%clk 01:23:38]} {[%emt 00:00:40]} Kc7 {[%clk 00:27:43]} {[%emt
00:01:47]} 23. Rdb2 {[%clk 01:21:35]} {[%emt 00:02:33]} Rb8 {[%clk 00:23:49]}
{[%emt 00:04:24]} 24. Ra1 {[%clk 01:16:05]} {[%emt 00:06:00]} Kd7 {[%clk
00:13:43]} {[%emt 00:10:36]} 25. a5 {[%clk 01:13:37]} {[%emt 00:02:58]} Qd8
{[%clk 00:14:08]} {[%emt 00:00:05]} 26. Rab1 {[%clk 01:11:35]} {[%emt
00:02:31]} Ke7 {[%clk 00:12:57]} {[%emt 00:01:42]} 27. Qf2 {[%clk 01:10:09]}
{[%emt 00:01:56]} Qc7 {[%clk 00:10:10]} {[%emt 00:03:18]} 28. Na4 {[%clk
01:07:01]} {[%emt 00:03:38]} b5 {[%clk 00:09:10]} {[%emt 00:01:29]} 29. cxb5
{[%clk 01:07:04]} {[%emt 00:00:26]} cxb5 {[%clk 00:09:37]} {[%emt 00:00:04]} 30.
Rc2 {[%clk 01:07:10]} {[%emt 00:00:23]} Qd7 {[%clk 00:09:20]} {[%emt 00:00:48]}
31. Nc3 {[%clk 01:07:17]} {[%emt 00:00:22]} a6 {[%clk 00:09:16]} {[%emt
00:00:36]} 32. Rbc1 {[%clk 01:06:26]} {[%emt 00:01:21]} Rhc8 {[%clk 00:08:15]}
{[%emt 00:01:30]} 33. Qa7 {[%clk 00:51:54]} {[%emt 00:15:01]} Kd8 {[%clk
00:03:47]} {[%emt 00:04:59]} 34. Nd5 {[%clk 00:46:52]} {[%emt 00:05:33]} Bxd5
{[%clk 00:02:24]} {[%emt 00:01:52]} 35. Rxc8+ {[%clk 00:47:09]} {[%emt
00:00:12]} Rxc8 {[%clk 00:02:45]} {[%emt 00:00:09]} 36. Qb6+ {[%clk 00:45:52]}
{[%emt 00:01:47]} Ke7 {[%clk 00:02:28]} {[%emt 00:00:49]} 37. Rxc8 {[%clk
00:46:05]} {[%emt 00:00:16]} Qxc8 {[%clk 00:02:55]} {[%emt 00:00:03]} 38. exd5
{[%clk 00:46:19]} {[%emt 00:00:17]} Qc1+ {[%clk 00:02:55]} {[%emt 00:00:29]} 39.
Kh2 {[%clk 00:43:13]} {[%emt 00:03:35]} Qf4+ {[%clk 00:03:17]} {[%emt
00:00:08]} 40. Kh1 {[%clk 00:43:36]} {[%emt 00:00:08]} Qf1+ {[%clk 00:00:54]}
{[%emt 00:02:52]} 41. Qg1 {[%clk 00:43:02]} {[%emt 00:01:04]} Qxf5 {[%clk
00:01:18]} {[%emt 00:00:06]} 42. Qa7+ {[%clk 00:43:20]} {[%emt 00:00:10]} Kf8
{[%clk 00:01:42]} {[%emt 00:00:07]} 43. Qb8+ {[%clk 00:43:25]} {[%emt
00:00:26]} Kg7 {[%clk 00:01:54]} {[%emt 00:00:18]} 44. Qxd6 {[%clk 00:43:46]}
{[%emt 00:00:07]} Qf1+ {[%clk 00:02:16]} {[%emt 00:00:09]} 45. Kh2 {[%clk
00:44:10]} {[%emt 00:00:07]} Qf4+ {[%clk 00:02:34]} {[%emt 00:00:12]} 1/2-1/2

[Event "2. Itzehoer Schach Open"]
[Site "Itzehoe, Germany"]
[Date "2023.04.30"]
[Round "4.29"]
[White "Papenfuss, Kai"]
[Black "Lueders Vega, Iago Ernst"]
[Result "1-0"]
[TimeControl "90 min / 40 Züge + 30 min + 30 Sek pro Zug"]
[WhiteElo "1751"]
[BlackElo "1333"]

1. e4 {[%emt 00:02:19]} e5 {[%clk 01:30:55]} 2. Nc3 {[%clk 01:28:54]} {[%emt
00:00:21]} Nf6 {[%clk 01:31:16]} {[%emt 00:00:09]} 3. g3 {[%clk 01:29:13]}
{[%emt 00:00:11]} Bc5 {[%clk 01:31:24]} {[%emt 00:00:23]} 4. Bg2 {[%clk
01:29:29]} {[%emt 00:00:13]} O-O {[%clk 01:30:46]} {[%emt 00:01:08]} 5. Nge2
{[%clk 01:29:37]} {[%emt 00:00:22]} Nc6 {[%clk 01:30:30]} {[%emt 00:00:47]} 6.
O-O {[%clk 01:29:23]} {[%emt 00:00:44]} d6 {[%clk 01:30:31]} {[%emt 00:00:29]}
7. Na4 {[%clk 01:28:23]} {[%emt 00:01:30]} Bb6 {[%clk 01:30:45]} {[%emt
00:00:16]} 8. h3 {[%clk 01:22:31]} {[%emt 00:06:23]} Be6 {[%clk 01:30:02]}
{[%emt 00:01:12]} 9. Nxb6 {[%clk 01:22:10]} {[%emt 00:00:51]} axb6 {[%clk
01:30:24]} {[%emt 00:00:08]} 10. d4 {[%clk 01:22:26]} {[%emt 00:00:14]} exd4
{[%clk 01:30:35]} {[%emt 00:00:19]} 11. Nxd4 {[%clk 01:22:27]} {[%emt
00:00:28]} Nxd4 {[%clk 01:30:22]} {[%emt 00:00:42]} 12. Qxd4 {[%clk 01:22:26]}
{[%emt 00:00:32]} Qd7 {[%clk 01:30:23]} {[%emt 00:00:30]} 13. Kh2 {[%clk
01:21:17]} {[%emt 00:01:39]} Ra4 {[%clk 01:29:44]} {[%emt 00:01:09]} 14. Qe3
{[%clk 01:18:48]} {[%emt 00:02:59]} Re8 {[%clk 01:29:39]} {[%emt 00:00:35]} 15.
b3 {[%clk 01:18:46]} {[%emt 00:00:32]} Ra5 {[%clk 01:29:37]} {[%emt 00:00:32]}
16. Bb2 {[%clk 01:16:10]} {[%emt 00:03:06]} Qd8 {[%emt 00:05:43]} 17. a4 {[%clk
01:11:29]} {[%emt 00:05:11]} Nd7 {[%clk 01:21:09]} {[%emt 00:03:45]} 18. c4
{[%clk 01:07:28]} {[%emt 00:04:31]} c6 {[%clk 01:20:19]} {[%emt 00:01:19]} 19.
Qc3 {[%clk 01:06:35]} {[%emt 00:01:23]} f6 {[%clk 01:20:08]} {[%emt 00:00:42]}
20. Rad1 {[%clk 01:06:21]} {[%emt 00:00:44]} Ne5 {[%clk 01:19:34]} {[%emt
00:01:04]} 21. f4 {[%clk 01:03:57]} {[%emt 00:02:53]} Nf7 {[%clk 01:19:26]}
{[%emt 00:00:38]} 22. g4 {[%clk 00:58:40]} {[%emt 00:05:47]} Qb8 {[%clk
01:18:02]} {[%emt 00:01:55]} 23. g5 {[%clk 00:56:21]} {[%emt 00:02:49]} Rc8
{[%clk 01:17:49]} {[%emt 00:00:43]} 24. gxf6 {[%clk 00:54:42]} {[%emt
00:02:09]} g6 {[%clk 01:17:30]} {[%emt 00:00:12]} 25. Qg3 {[%clk 00:51:08]}
{[%emt 00:04:41]} Kf8 {[%clk 01:17:04]} {[%emt 00:00:56]} 26. f5 {[%clk
00:49:20]} {[%emt 00:02:18]} gxf5 {[%clk 01:17:13]} {[%emt 00:00:20]} 27. Qg7+
{[%clk 00:49:30]} {[%emt 00:00:20]} Ke8 {[%clk 01:17:38]} {[%emt 00:00:06]} 28.
exf5 {[%clk 00:49:22]} {[%emt 00:00:39]} Bxf5 {[%clk 01:17:42]} {[%emt
00:00:25]} 29. Qg8+ {[%clk 00:49:37]} {[%emt 00:00:15]} Kd7 {[%clk 01:17:55]}
{[%emt 00:00:17]} 30. Qxf7+ {[%clk 00:49:52]} {[%emt 00:00:15]} 1-0

[Event "2. Itzehoer Schach Open"]
[Site "Itzehoe, Germany"]
[Date "2023.04.30"]
[Round "4.31"]
[White "Spieker, Hans-Joachim"]
[Black "Lieb, Max"]
[Result "1-0"]
[TimeControl "90 min / 40 Züge + 30 min + 30 Sek pro Zug"]
[WhiteElo "1747"]
[BlackElo "1333"]

1. Nf3 {[%clk 01:30:59]} {[%emt 00:18:37]} g6 {[%clk 01:30:52]} {[%emt
00:00:09]} 2. c4 {[%clk 01:31:26]} {[%emt 00:00:03]} Bg7 {[%clk 01:31:15]}
{[%emt 00:00:07]} 3. g3 {[%clk 01:31:55]} {[%emt 00:00:01]} d6 {[%clk
01:31:35]} {[%emt 00:00:10]} 4. Bg2 {[%clk 01:32:20]} {[%emt 00:00:04]} Nd7
{[%clk 01:31:58]} {[%emt 00:00:08]} 5. O-O {[%clk 01:32:44]} {[%emt 00:00:06]}
e6 {[%clk 01:32:24]} {[%emt 00:00:04]} 6. d3 {[%clk 01:32:16]} {[%emt
00:00:58]} Ne7 {[%clk 01:32:48]} {[%emt 00:00:07]} 7. Qc2 {[%clk 01:32:22]}
{[%emt 00:00:23]} b6 {[%clk 01:32:58]} {[%emt 00:00:21]} 8. Bg5 {[%clk
01:25:56]} {[%emt 00:06:55]} Bb7 {[%clk 01:33:14]} {[%emt 00:00:15]} 9. Nc3
{[%clk 01:25:58]} {[%emt 00:00:27]} h6 {[%clk 01:33:33]} {[%emt 00:00:12]} 10.
Bd2 {[%clk 01:26:11]} {[%emt 00:00:17]} a6 {[%clk 01:33:46]} {[%emt 00:00:18]}
11. Rac1 {[%clk 01:25:36]} {[%emt 00:01:04]} f5 {[%clk 01:34:03]} {[%emt
00:00:12]} 12. e4 {[%clk 01:25:28]} {[%emt 00:00:38]} g5 {[%clk 01:33:16]}
{[%emt 00:01:17]} 13. exf5 {[%clk 01:22:22]} {[%emt 00:03:36]} Nxf5 {[%clk
01:32:37]} {[%emt 00:01:09]} 14. Rfe1 {[%clk 01:21:29]} {[%emt 00:01:23]} Bxf3
{[%clk 01:31:59]} {[%emt 00:01:08]} 15. Bxf3 {[%clk 01:21:51]} {[%emt
00:00:08]} Nd4 {[%clk 01:32:12]} {[%emt 00:00:17]} 16. Qd1 {[%clk 01:21:58]}
{[%emt 00:00:22]} Nxf3+ {[%clk 01:26:07]} {[%emt 00:06:36]} 17. Qxf3 {[%clk
01:22:25]} {[%emt 00:00:02]} Ne5 {[%clk 01:26:16]} {[%emt 00:00:22]} 18. Qe4
{[%clk 01:19:59]} {[%emt 00:02:56]} Rf8 {[%clk 01:24:42]} {[%emt 00:02:04]} 19.
f4 {[%clk 01:19:34]} {[%emt 00:00:54]} gxf4 {[%clk 01:19:30]} {[%emt 00:05:42]}
20. Bxf4 {[%clk 01:19:48]} {[%emt 00:00:16]} Rb8 {[%clk 01:16:13]} {[%emt
00:03:47]} 21. d4 {[%clk 01:19:30]} {[%emt 00:00:48]} Nf3+ {[%clk 01:10:58]}
{[%emt 00:05:45]} 22. Qxf3 {[%clk 01:19:40]} {[%emt 00:00:20]} Bxd4+ {[%clk
01:10:59]} {[%emt 00:00:29]} 23. Kg2 {[%clk 01:19:07]} {[%emt 00:01:02]} e5
{[%clk 01:11:14]} {[%emt 00:00:16]} 24. Qh5+ {[%clk 01:17:21]} {[%emt
00:02:15]} Kd7 {[%clk 01:11:13]} {[%emt 00:00:32]} 25. Qg4+ {[%clk 01:17:15]}
{[%emt 00:00:35]} Kc6 {[%clk 01:10:14]} {[%emt 00:01:30]} 26. Be3 {[%clk
01:17:13]} {[%emt 00:00:32]} Qf6 {[%clk 01:04:24]} {[%emt 00:06:20]} 27. Qe4+
{[%clk 01:14:49]} {[%emt 00:02:53]} Kd7 {[%clk 01:04:50]} {[%emt 00:00:35]} 28.
Nd5 {[%clk 01:13:04]} {[%emt 00:02:44]} Qf7 {[%clk 00:59:43]} {[%emt 00:05:37]}
29. Bxd4 {[%clk 01:13:23]} {[%emt 00:00:11]} exd4 {[%clk 00:58:36]} {[%emt
00:01:37]} 30. Qe7+ {[%clk 01:13:39]} {[%emt 00:00:14]} Kc6 {[%clk 00:57:39]}
{[%emt 00:01:27]} 31. Qxf7 {[%clk 01:13:25]} {[%emt 00:00:43]} Rxf7 {[%clk
00:57:59]} {[%emt 00:00:10]} 32. Rcd1 {[%clk 01:12:53]} {[%emt 00:01:02]} Rbf8
{[%clk 00:57:06]} {[%emt 00:01:23]} 33. Rd2 {[%clk 01:13:15]} {[%emt 00:00:08]}
Kc5 {[%clk 00:57:14]} {[%emt 00:00:23]} 34. b3 {[%clk 01:13:30]} {[%emt
00:00:15]} c6 {[%clk 00:56:59]} {[%emt 00:00:45]} 35. Nf4 {[%clk 01:13:46]}
{[%emt 00:00:13]} d5 {[%clk 00:53:10]} {[%emt 00:04:20]} 36. Ne6+ {[%clk
01:13:56]} {[%emt 00:00:20]} 1-0

[Event "2. Itzehoer Schach Open"]
[Site "Itzehoe, Germany"]
[Date "2023.04.30"]
[Round "4.36"]
[White "Recklies, Volker"]
[Black "Offenbaecher, Julius"]
[Result "1-0"]
[TimeControl "90 min / 40 Züge + 30 min + 30 Sek pro Zug"]
[WhiteElo "1701"]
[BlackElo "1128"]

1. Nf3 {[%clk 01:30:56]} {[%emt 00:00:03]} Nf6 {[%clk 01:30:53]} {[%emt
00:00:08]} 2. g3 {[%clk 01:31:17]} {[%emt 00:00:09]} g6 {[%clk 01:30:27]}
{[%emt 00:00:56]} 3. Bg2 {[%clk 01:31:41]} {[%emt 00:00:06]} Bg7 {[%clk
01:30:40]} {[%emt 00:00:17]} 4. d4 {[%clk 01:32:03]} {[%emt 00:00:08]} d5
{[%clk 01:30:55]} {[%emt 00:00:15]} 5. O-O {[%clk 01:32:10]} {[%emt 00:00:23]}
O-O {[%clk 01:30:45]} {[%emt 00:00:40]} 6. c3 {[%clk 01:31:55]} {[%emt
00:00:46]} c6 {[%clk 01:29:45]} {[%emt 00:01:30]} 7. Nbd2 {[%clk 01:32:08]}
{[%emt 00:00:16]} Bf5 {[%clk 01:29:45]} {[%emt 00:00:30]} 8. Re1 {[%clk
01:32:16]} {[%emt 00:00:23]} Nbd7 {[%clk 01:29:53]} {[%emt 00:00:21]} 9. Qb3
{[%clk 01:32:12]} {[%emt 00:00:35]} Qb6 {[%clk 01:29:57]} {[%emt 00:00:26]} 10.
Nh4 {[%clk 01:28:29]} {[%emt 00:04:12]} e6 {[%clk 01:25:37]} {[%emt 00:04:51]}
11. e4 {[%clk 01:23:12]} {[%emt 00:05:46]} dxe4 {[%clk 01:24:17]} {[%emt
00:01:50]} 12. Nxe4 {[%clk 01:23:29]} {[%emt 00:00:13]} Bxe4 {[%clk 01:24:10]}
{[%emt 00:00:37]} 13. Bxe4 {[%clk 01:23:36]} {[%emt 00:00:24]} Nxe4 {[%clk
01:23:25]} {[%emt 00:01:15]} 14. Rxe4 {[%clk 01:23:54]} {[%emt 00:00:11]} Nf6
{[%clk 01:23:50]} {[%emt 00:00:05]} 15. Qxb6 {[%clk 01:20:24]} {[%emt
00:04:00]} axb6 {[%clk 01:24:09]} {[%emt 00:00:11]} 16. Re2 {[%clk 01:20:24]}
{[%emt 00:00:30]} c5 {[%clk 01:22:05]} {[%emt 00:02:35]} 17. Nf3 {[%clk
01:19:22]} {[%emt 00:01:31]} Rfe8 {[%clk 01:14:36]} {[%emt 00:07:58]} 18. Bg5
{[%clk 01:14:32]} {[%emt 00:05:20]} Nd7 {[%clk 01:13:11]} {[%emt 00:01:55]} 19.
a3 {[%clk 01:13:32]} {[%emt 00:01:30]} e5 {[%clk 01:08:06]} {[%emt 00:05:34]}
20. Rae1 {[%clk 01:11:37]} {[%emt 00:02:25]} f6 {[%clk 01:05:57]} {[%emt
00:02:40]} 21. Bc1 {[%clk 01:08:45]} {[%emt 00:03:21]} cxd4 {[%clk 01:03:23]}
{[%emt 00:03:04]} 22. cxd4 {[%clk 01:08:43]} {[%emt 00:00:32]} b5 {[%clk
01:02:00]} {[%emt 00:01:53]} 23. dxe5 {[%clk 01:03:16]} {[%emt 00:05:57]} Nxe5
{[%clk 00:59:29]} {[%emt 00:03:01]} 24. Nxe5 {[%clk 01:01:47]} {[%emt
00:02:00]} Rxe5 {[%clk 00:59:46]} {[%emt 00:00:13]} 25. Rxe5 {[%clk 01:01:20]}
{[%emt 00:00:57]} fxe5 {[%clk 01:00:04]} {[%emt 00:00:11]} 26. Bd2 {[%clk
01:00:58]} {[%emt 00:00:52]} e4 {[%clk 00:58:38]} {[%emt 00:01:56]} 27. Rxe4
{[%clk 00:53:14]} {[%emt 00:08:14]} Bxb2 {[%clk 00:57:15]} {[%emt 00:01:53]} 28.
Rb4 {[%clk 00:53:22]} {[%emt 00:00:23]} Bxa3 {[%clk 00:55:14]} {[%emt
00:02:31]} 29. Rxb5 {[%clk 00:53:44]} {[%emt 00:00:08]} Rd8 {[%clk 00:51:41]}
{[%emt 00:04:02]} 30. Be3 {[%clk 00:53:41]} {[%emt 00:00:34]} Rd7 {[%clk
00:51:46]} {[%emt 00:00:25]} 31. h4 {[%clk 00:52:28]} {[%emt 00:01:42]} Rc7
{[%clk 00:49:57]} {[%emt 00:02:19]} 32. h5 {[%clk 00:52:15]} {[%emt 00:00:43]}
Bc1 {[%clk 00:50:03]} {[%emt 00:00:24]} 33. hxg6 {[%clk 00:52:01]} {[%emt
00:00:44]} hxg6 {[%clk 00:49:25]} {[%emt 00:01:09]} 34. Kg2 {[%clk 00:50:58]}
{[%emt 00:01:32]} Bxe3 {[%clk 00:49:23]} {[%emt 00:00:31]} 35. fxe3 {[%clk
00:51:26]} {[%emt 00:00:03]} Rf7 {[%clk 00:45:43]} {[%emt 00:04:10]} 36. g4
{[%clk 00:50:39]} {[%emt 00:01:17]} Kh7 {[%clk 00:43:52]} {[%emt 00:02:21]} 37.
Kg3 {[%clk 00:49:00]} {[%emt 00:02:09]} Kh6 {[%clk 00:41:39]} {[%emt 00:02:44]}
38. Kh4 {[%clk 00:46:39]} {[%emt 00:02:51]} Kh7 {[%clk 00:32:58]} {[%emt
00:09:11]} 39. Kg5 {[%clk 00:44:59]} {[%emt 00:02:09]} Re7 {[%clk 00:20:52]}
{[%emt 00:12:38]} 40. Rb6 {[%clk 00:41:29]} {[%emt 00:04:00]} Re5+ {[%clk
00:12:20]} {[%emt 00:09:01]} 41. Kf4 {[%clk 00:38:02]} {[%emt 00:03:57]} Re7
{[%clk 00:12:00]} {[%emt 00:00:50]} 42. e4 {[%clk 00:32:11]} {[%emt 00:06:20]}
Kg7 {[%clk 00:10:45]} {[%emt 00:01:46]} 43. e5 {[%clk 00:31:25]} {[%emt
00:01:16]} Kf7 {[%clk 00:08:45]} {[%emt 00:02:30]} 44. Ke4 {[%clk 00:26:10]}
{[%emt 00:05:45]} Re6 {[%clk 00:08:50]} {[%emt 00:00:25]} 45. Rxb7+ {[%clk
00:26:27]} {[%emt 00:00:12]} Re7 {[%clk 00:09:10]} {[%emt 00:00:10]} 46. Rxe7+
{[%clk 00:26:11]} {[%emt 00:00:47]} Kxe7 {[%clk 00:09:38]} {[%emt 00:00:02]} 47.
Kd5 {[%clk 00:26:18]} {[%emt 00:00:23]} g5 {[%clk 00:09:54]} {[%emt 00:00:15]}
48. e6 {[%clk 00:26:38]} {[%emt 00:00:10]} Ke8 {[%clk 00:07:44]} {[%emt
00:02:39]} 49. Ke5 {[%clk 00:26:54]} {[%emt 00:00:14]} Ke7 {[%clk 00:07:57]}
{[%emt 00:00:18]} 50. Kf5 {[%clk 00:27:12]} {[%emt 00:00:12]} Kf8 {[%clk
00:06:10]} {[%emt 00:02:17]} 51. Kxg5 {[%clk 00:27:34]} {[%emt 00:00:08]} Kg7
{[%clk 00:01:59]} {[%emt 00:04:41]} 52. Kf5 {[%clk 00:27:51]} {[%emt 00:00:12]}
Kg8 {[%clk 00:29:04]} {[%emt 00:03:25]} 53. Kf6 {[%clk 00:58:06]} {[%emt
00:00:15]} Kf8 {[%clk 00:29:22]} {[%emt 00:00:12]} 54. e7+ {[%clk 00:58:26]}
{[%emt 00:00:10]} Ke8 {[%clk 00:29:31]} {[%emt 00:00:22]} 55. g5 {[%clk
00:58:48]} {[%emt 00:00:08]} 1-0

[Event "2. Itzehoer Schach Open"]
[Site "Itzehoe, Germany"]
[Date "2023.04.30"]
[Round "4.9"]
[White "Stiller, Maximilian"]
[Black "Helms, Finn"]
[Result "1-0"]
[TimeControl "90 min / 40 Züge + 30 min + 30 Sek pro Zug"]
[WhiteElo "1657"]
[BlackElo "2002"]

1. Nf3 {[%clk 01:30:59]} Nf6 {[%clk 01:30:34]} {[%emt 00:00:25]} 2. d4 {[%clk
01:31:18]} {[%emt 00:00:11]} e6 {[%clk 01:30:52]} {[%emt 00:00:13]} 3. e3
{[%clk 01:31:25]} {[%emt 00:00:22]} d5 {[%clk 01:30:46]} {[%emt 00:00:37]} 4.
Bd3 {[%clk 01:31:48]} {[%emt 00:00:07]} Be7 {[%clk 01:30:31]} {[%emt 00:00:44]}
5. O-O {[%clk 01:32:09]} {[%emt 00:00:09]} O-O {[%clk 01:30:54]} {[%emt
00:00:08]} 6. Nbd2 {[%clk 01:32:30]} {[%emt 00:00:08]} b6 {[%clk 01:29:58]}
{[%emt 00:01:26]} 7. b3 {[%clk 01:32:51]} {[%emt 00:00:09]} Bb7 {[%clk
01:29:30]} {[%emt 00:00:59]} 8. Bb2 {[%clk 01:33:12]} {[%emt 00:00:08]} Nbd7
{[%clk 01:29:38]} {[%emt 00:00:23]} 9. Ne5 {[%clk 01:33:01]} {[%emt 00:00:40]}
a5 {[%clk 01:25:42]} {[%emt 00:04:27]} 10. a4 {[%clk 01:32:49]} {[%emt
00:00:42]} c5 {[%clk 01:25:23]} {[%emt 00:00:49]} 11. f4 {[%clk 01:32:50]}
{[%emt 00:00:29]} Ne4 {[%clk 01:24:08]} {[%emt 00:01:44]} 12. Nxe4 {[%clk
01:29:18]} {[%emt 00:04:03]} dxe4 {[%clk 01:24:05]} {[%emt 00:00:33]} 13. Bb5
{[%clk 01:29:32]} {[%emt 00:00:16]} Nf6 {[%clk 01:22:14]} {[%emt 00:02:20]} 14.
Qe2 {[%clk 01:22:41]} {[%emt 00:07:21]} Qc7 {[%clk 01:18:30]} {[%emt 00:04:15]}
15. Rad1 {[%clk 01:19:57]} {[%emt 00:03:13]} Rfd8 {[%clk 01:16:58]} {[%emt
00:02:02]} 16. c4 {[%clk 01:18:48]} {[%emt 00:01:39]} Ne8 {[%clk 01:09:17]}
{[%emt 00:08:12]} 17. Qg4 {[%clk 01:09:09]} {[%emt 00:10:08]} cxd4 {[%clk
00:59:09]} {[%emt 00:10:38]} 18. Bxd4 {[%clk 01:07:58]} {[%emt 00:01:41]} Nf6
{[%clk 00:56:43]} {[%emt 00:02:57]} 19. Qh3 {[%clk 01:05:54]} {[%emt 00:02:34]}
Bc5 {[%clk 00:53:36]} {[%emt 00:03:37]} 20. g4 {[%clk 00:58:41]} {[%emt
00:07:42]} Bxd4 {[%clk 00:49:23]} {[%emt 00:04:44]} 21. exd4 {[%clk 00:58:55]}
{[%emt 00:00:16]} Ne8 {[%clk 00:47:49]} {[%emt 00:02:04]} 22. Bxe8 {[%clk
00:56:58]} {[%emt 00:02:27]} Rxe8 {[%clk 00:47:35]} {[%emt 00:00:43]} 23. g5
{[%clk 00:56:50]} {[%emt 00:00:38]} Rad8 {[%clk 00:42:40]} {[%emt 00:05:25]} 24.
Kf2 {[%clk 00:56:44]} {[%emt 00:00:36]} Qe7 {[%clk 00:42:31]} {[%emt 00:00:40]}
25. Qh5 {[%clk 00:54:32]} {[%emt 00:02:42]} Ba8 {[%clk 00:40:54]} {[%emt
00:02:06]} 26. Rfe1 {[%clk 00:51:37]} {[%emt 00:03:26]} Rf8 {[%clk 00:39:59]}
{[%emt 00:01:24]} 27. Re3 {[%clk 00:50:23]} {[%emt 00:01:44]} g6 {[%clk
00:35:31]} {[%emt 00:04:58]} 28. Qh6 {[%clk 00:50:42]} {[%emt 00:00:11]} f6
{[%clk 00:35:46]} {[%emt 00:00:15]} 29. gxf6 {[%clk 00:44:23]} {[%emt
00:06:49]} Qxf6 {[%clk 00:33:44]} {[%emt 00:02:31]} 30. Kg3 {[%clk 00:44:17]}
{[%emt 00:00:37]} Kh8 {[%clk 00:31:51]} {[%emt 00:02:23]} 31. h4 {[%clk
00:42:02]} {[%emt 00:02:44]} Qf5 {[%clk 00:26:53]} {[%emt 00:05:28]} 32. Qg5
{[%clk 00:39:04]} {[%emt 00:03:28]} Rd6 {[%clk 00:23:23]} {[%emt 00:03:59]} 33.
Qxf5 {[%clk 00:34:25]} {[%emt 00:05:10]} gxf5 {[%clk 00:23:35]} {[%emt
00:00:18]} 34. Kf2 {[%clk 00:33:55]} {[%emt 00:01:01]} Kg7 {[%clk 00:23:51]}
{[%emt 00:00:13]} 35. Rg3+ {[%clk 00:33:28]} {[%emt 00:00:57]} Kf6 {[%clk
00:19:43]} {[%emt 00:04:38]} 36. Ke3 {[%clk 00:31:34]} {[%emt 00:02:24]} Bc6
{[%clk 00:13:10]} {[%emt 00:07:04]} 37. Rdg1 {[%clk 00:30:09]} {[%emt
00:01:54]} Be8 {[%clk 00:10:57]} {[%emt 00:02:43]} 38. Rg7 {[%clk 00:29:22]}
{[%emt 00:01:17]} Bg6 {[%clk 00:10:52]} {[%emt 00:00:36]} 39. Rb7 {[%clk
00:27:51]} {[%emt 00:02:00]} Rfd8 {[%clk 00:10:31]} {[%emt 00:00:52]} 40. Rxg6+
{[%clk 00:26:51]} {[%emt 00:01:30]} 1-0